fUSD/lending_fUSD_20250806
["ID","MTS","AMOUNT","RATE_DAILY","PERIOD"]
[377622299,1754463053181,-400.0,0.00035616,14]
[377622300,1754463053190,-1650.57,0.00035616,14]
[377622301,1754463053200,-867.44,0.00035616,14]
[377622302,1754463053209,-400.0,0.00035616,14]
[377622303,1754463053218,-1716.9,0.00035616,14]
[377622304,1754463053227,-1032.79,0.00035616,14]
[377622305,1754463053236,-400.0,0.00035616,14]
[377622306,1754463053246,-400.0,0.00035616,14]
[377622307,1754463053255,-500.0,0.00035616,14]
[377622308,1754463053264,-2745.35,0.00035616,14]
[377622309,1754463053273,-811.53,0.00035616,14]
[377622310,1754463053284,-1447.74,0.00035616,14]
[377622311,1754463053294,-1116.41,0.00035616,14]
[377622312,1754463053303,-400.0,0.00035616,14]
[377622313,1754463053311,-1972.21,0.00035616,14]
[377622314,1754463053320,-400.0,0.00035616,14]
[377622315,1754463053329,-4636.23,0.00035616,14]
[377622316,1754463053339,-400.0,0.00035616,14]
[377622317,1754463053348,-2712.79,0.00035616,14]
[377622318,1754463053357,-2042.35,0.00035616,14]
[377622319,1754463053366,-151.0,0.00035616,7]
[377622320,1754463053376,-151.0,0.00035616,7]
[377622321,1754463053385,-411.98,0.00035616,14]
[377622322,1754463053394,-151.0,0.00035616,7]
[377622323,1754463053404,-400.0,0.00035616,14]
[377622324,1754463053413,-567.5,0.00035616,14]
[377622325,1754463053422,-1743.78,0.00035616,14]
[377622326,1754463053431,-656.34,0.00035616,14]
[377622327,1754463053440,-555.34,0.00035616,14]
[377622328,1754463053449,-400.0,0.00035616,14]
[377622329,1754463053458,-848.62,0.00035616,14]
[377622330,1754463053467,-151.0,0.00035616,7]
[377622331,1754463053476,-151.0,0.00035616,7]
[377622332,1754463053486,-500.0,0.00035616,14]
[377622333,1754463053494,-500.0,0.00035616,14]
[377622334,1754463053503,-151.0,0.00035616,7]
[377622335,1754463053512,-500.0,0.00035616,14]
[377622336,1754463053521,-400.0,0.00035616,14]
[377622337,1754463053530,-400.0,0.00035616,14]
[377622338,1754463053539,-1811.11,0.00035616,14]
[377622339,1754463053549,-400.0,0.00035616,14]
[377622340,1754463053559,-400.0,0.00035616,14]
[377622341,1754463053568,-1888.44,0.00035616,14]
[377622342,1754463053578,-400.0,0.00035616,14]
[377622343,1754463053588,-2068.87,0.00035616,14]
[377622344,1754463053598,-400.0,0.00035616,14]
[377622345,1754463053607,-1000.0,0.00035616,14]
[377622346,1754463053617,-810.48,0.00035616,14]
[377622347,1754463053626,-1555.97,0.00035616,14]
[377622348,1754463053635,-880.44,0.00035616,14]
[377622349,1754463053644,-400.0,0.00035616,14]
[377622350,1754463053654,-738.3,0.00035616,14]
[377622351,1754463053664,-594.54,0.00035616,14]
[377622352,1754463053673,-400.0,0.00035616,14]
[377622353,1754463053683,-400.0,0.00035616,14]
[377622354,1754463053694,-1657.85,0.00035616,14]
[377622355,1754463053704,-400.0,0.00035616,14]
[377622356,1754463053714,-1198.72,0.00035616,14]
[377622357,1754463053723,-2539.05,0.00035616,14]
[377622358,1754463053733,-824.18,0.00035616,14]
[377622359,1754463053743,-400.0,0.00035616,14]
[377622360,1754463053752,-224.477563,0.00035616,14]
[377622361,1754463053762,-1190.93,0.00035616,14]
[377622362,1754463053774,-579.41,0.00035616,14]
[377622363,1754463053784,-434.36,0.00035616,14]
[377622364,1754463053794,-2125.66,0.00035616,14]
[377622365,1754463053804,-2079.21,0.00035616,14]
[377622366,1754463053815,-1616.09,0.00035616,14]
[377622367,1754463053824,-726.31,0.00035616,14]
[377622368,1754463053959,-150.107766,0.00035616,14]
[377622369,1754463053968,-1531.59,0.00035616,14]
[377622370,1754463053977,-1513.03,0.00035616,14]
[377622371,1754463053987,-400.0,0.00035616,14]
[377622372,1754463053999,-400.0,0.00035616,14]
[377622373,1754463054010,-400.0,0.00035616,14]
[377622374,1754463054019,-4057.06,0.00035616,14]
[377622375,1754463054030,-151.0,0.00035616,7]
[377622376,1754463054039,-3668.44,0.00035616,14]
[377622377,1754463054050,-400.0,0.00035616,14]
[377622378,1754463054059,-151.0,0.00035616,7]
[377622379,1754463054069,-1822.83,0.00035616,14]
[377622380,1754463054078,-151.0,0.00035616,7]
[377622381,1754463054088,-900.7,0.00035616,14]
[377622382,1754463054097,-1884.22,0.00035616,14]
[377622383,1754463054107,-400.0,0.00035616,14]
[377622384,1754463054117,-1138.46,0.00035616,14]
[377622385,1754463054126,-400.0,0.00035616,14]
[377622386,1754463054136,-400.0,0.00035616,14]
[377622387,1754463054146,-2403.27,0.00035616,14]
[377622388,1754463054156,-151.0,0.00035616,7]
[377622389,1754463054166,-253.871373,0.00035616,14]
[377622390,1754463054176,-2524.22,0.00035616,14]
[377622391,1754463054185,-151.0,0.00035616,7]
[377622392,1754463054195,-1918.46,0.00035616,14]
[377622393,1754463054204,-1564.51,0.00035616,14]
[377622394,1754463054213,-400.0,0.00035616,14]
[377622395,1754463054222,-400.0,0.00035616,14]
[377622396,1754463054232,-400.0,0.00035616,14]
[377622397,1754463054241,-1952.41,0.00035616,14]
[377622398,1754463054251,-400.0,0.00035616,14]
[377622399,1754463054260,-401.42656142,0.00035616,14]
[377622400,1754463054269,-2476.12,0.00035616,14]
[377622401,1754463054279,-1710.21,0.00035616,14]
[377622402,1754463054288,-400.0,0.00035616,14]
[377622403,1754463054298,-1106.74,0.00035616,14]
[377622404,1754463054307,-1385.4,0.00035616,14]
[377622405,1754463054316,-400.0,0.00035616,14]
[377622406,1754463054326,-400.0,0.00035616,14]
[377622407,1754463054335,-847.53,0.00035616,14]
[377622408,1754463054345,-369.02331646,0.00035616,14]
[377622409,1754463054354,-1565.88,0.00035616,14]
[377622410,1754463054363,-400.0,0.00035616,14]
[377622411,1754463054373,-10970.56,0.00035616,14]
[377622412,1754463054383,-400.0,0.00035616,14]
[377622413,1754463054392,-410.89,0.00035616,14]
[377622414,1754463054402,-400.0,0.00035616,14]
[377622415,1754463054412,-1626.03,0.00035616,14]
[377622416,1754463054422,-400.0,0.00035616,14]
[377622417,1754463054431,-771.57,0.00035616,14]
[377622418,1754463054441,-455.72,0.00035616,14]
[377622419,1754463054451,-457.29,0.00035616,14]
[377622420,1754463054461,-1855.29,0.00035616,14]
[377622421,1754463054470,-2111.7,0.00035616,14]
[377622422,1754463054479,-400.0,0.00035616,14]
[377622423,1754463054488,-1329.84,0.00035616,14]
[377622424,1754463054498,-1024.18,0.00035616,14]
[377622425,1754463054508,-400.0,0.00035616,14]
[377622426,1754463054517,-400.0,0.00035616,14]
[377622427,1754463054526,-400.0,0.00035616,14]
[377622428,1754463054536,-1293.83,0.00035616,14]
[377622429,1754463054545,-400.0,0.00035616,14]
[377622430,1754463054554,-497.63,0.00035616,14]
[377622431,1754463054563,-1348.43,0.00035616,14]
[377622432,1754463054573,-400.0,0.00035616,14]
[377622433,1754463054582,-2079.19,0.00035616,14]
[377622434,1754463054592,-156.02238182,0.00035616,14]
[377622435,1754463054602,-151.0,0.00035616,7]
[377622436,1754463054612,-400.0,0.00035616,14]
[377622437,1754463054621,-690.75,0.00035616,14]
[377622438,1754463054631,-400.0,0.00035616,14]
[377622439,1754463054640,-400.0,0.00035616,14]
[377622440,1754463054650,-966.82,0.00035616,14]
[377622441,1754463054659,-400.0,0.00035616,14]
[377622442,1754463054668,-1832.46,0.00035616,14]
[377622443,1754463054678,-4230.61,0.00035616,14]
[377622444,1754463054687,-1447.26,0.00035616,14]
[377622445,1754463054696,-400.0,0.00035616,14]
[377622446,1754463054706,-400.0,0.00035616,14]
[377622447,1754463054715,-430.74,0.00035616,14]
[377622448,1754463054724,-404.6,0.00035616,14]
[377622449,1754463054734,-657.57,0.00035616,14]
[377622450,1754463054743,-400.0,0.00035616,7]
[377622451,1754463054752,-1119.52,0.00035616,14]
[377622452,1754463054761,-1737.53,0.00035616,14]
[377622453,1754463054772,-400.0,0.00035616,14]
[377622454,1754463054782,-2629.2,0.00035616,14]
[377622455,1754463054791,-2323.73,0.00035616,14]
[377622456,1754463054800,-400.0,0.00035616,14]
[377622457,1754463054810,-400.0,0.00035616,14]
[377622458,1754463054819,-1210.42,0.00035616,14]
[377622459,1754463054828,-500.0,0.00035616,14]
[377622460,1754463054837,-400.0,0.00035616,14]
[377622461,1754463054846,-500.0,0.00035616,14]
[377622462,1754463054855,-500.0,0.00035616,14]
[377622463,1754463054865,-564.3,0.00035616,14]
[377622464,1754463054874,-500.0,0.00035616,14]
[377622465,1754463054883,-500.0,0.00035616,14]
[377622466,1754463054892,-500.0,0.00035616,14]
[377622467,1754463054901,-400.0,0.00035616,14]
[377622468,1754463054912,-500.0,0.00035616,14]
[377622469,1754463054922,-1278.84,0.00035616,14]
[377622470,1754463054931,-624.78,0.00035616,14]
[377622471,1754463054940,-500.0,0.00035616,14]
[377622472,1754463054949,-500.0,0.00035616,14]
[377622473,1754463054959,-400.0,0.00035616,14]
[377622474,1754463054968,-500.0,0.00035616,14]
[377622475,1754463054977,-500.0,0.00035616,14]
[377622476,1754463054987,-500.0,0.00035616,14]
[377622477,1754463054996,-1853.31,0.00035616,14]
[377622478,1754463055005,-500.0,0.00035616,14]
[377622479,1754463055013,-216.70498828,0.00035616,14]
[377622480,1754463055022,-2228.18,0.00035616,14]
[377622481,1754463055032,-739.27,0.00035616,14]
[377622482,1754463055041,-400.0,0.00035616,14]
[377622483,1754463055050,-400.0,0.00035616,14]
[377622484,1754463055059,-400.0,0.00035616,14]
[377622485,1754463055069,-400.0,0.00035616,14]
[377622486,1754463055078,-704.11,0.00035616,14]
[377622487,1754463055088,-400.0,0.00035616,14]
[377622488,1754463055097,-400.0,0.00035616,14]
[377622489,1754463055106,-544.25,0.00035616,14]
[377622490,1754463055115,-442.54,0.00035616,14]
[377622491,1754463055124,-473.37,0.00035616,14]
[377622492,1754463055133,-1456.3,0.00035616,14]
[377622493,1754463055142,-400.0,0.00035616,14]
[377622494,1754463055151,-400.0,0.00035616,14]
[377622495,1754463055162,-1824.39,0.00035616,14]
[377622496,1754463055172,-400.0,0.00035616,14]
[377622497,1754463055181,-540.36,0.00035616,14]
[377622498,1754463055190,-1895.91,0.00035616,14]
[377622499,1754463055199,-262.769962,0.00035616,14]
[377622500,1754463055208,-400.0,0.00035616,14]
[377622501,1754463055218,-400.0,0.00035616,14]
[377622502,1754463055227,-482.47,0.00035616,14]
[377622503,1754463055237,-500.0,0.00035616,14]
[377622504,1754463055246,-500.0,0.00035616,14]
[377622505,1754463055255,-611.03044331,0.00035616,14]
[377622506,1754463055264,-400.0,0.00035616,14]
[377622507,1754463055274,-400.0,0.00035616,14]
[377622508,1754463055284,-336.96930012,0.00035616,7]
[377622509,1754463055294,-2607.99,0.00035616,14]
[377622510,1754463055303,-400.0,0.00035616,14]
[377622511,1754463055313,-167.626178,0.00035616,14]
[377622512,1754463055322,-400.0,0.00035616,14]
[377622513,1754463055332,-1789.41,0.00035616,14]
[377622514,1754463055341,-2320.09,0.00035616,14]
[377622515,1754463055350,-630.66,0.00035616,14]
[377622516,1754463055360,-2361.06,0.00035616,14]
[377622517,1754463055369,-400.0,0.00035616,14]
[377622518,1754463055378,-1648.97,0.00035616,14]
[377622519,1754463055388,-594.02,0.00035616,14]
[377622520,1754463055398,-400.0,0.00035616,14]
[377622521,1754463055409,-400.0,0.00035616,14]
[377622522,1754463055419,-400.0,0.00035616,14]
[377622523,1754463055428,-922.75,0.00035616,14]
[377622524,1754463055437,-176.500858,0.00035616,14]
[377622525,1754463055447,-461.51991749,0.00035616,14]
[377622526,1754463055456,-438.23657193,0.00035616,14]
[377622527,1754463055465,-904.06,0.00035616,14]
[377622528,1754463055475,-2854.46,0.00035616,14]
[377622529,1754463055485,-400.0,0.00035616,14]
[377622530,1754463055494,-2625.41,0.00035616,14]
[377622531,1754463055503,-400.0,0.00035616,14]
[377622532,1754463055512,-2549.7,0.00035616,14]
[377622533,1754463055522,-1100.6,0.00035616,14]
[377622534,1754463055531,-2653.05,0.00035616,14]
[377622535,1754463055540,-400.0,0.00035616,14]
[377622536,1754463055548,-400.0,0.00035616,14]
[377622537,1754463055558,-400.0,0.00035616,14]
[377622538,1754463055568,-2685.33,0.00035616,14]
[377622539,1754463055578,-1138.52,0.00035616,14]
[377622540,1754463055588,-400.0,0.00035616,14]
[377622541,1754463055598,-68585.58,0.00035616,14]
[377622542,1754463055607,-400.0,0.00035616,14]
[377622543,1754463055618,-2529.05,0.00035616,14]
[377622544,1754463055628,-1257.06,0.00035616,14]
[377622545,1754463055637,-400.0,0.00035616,14]
[377622546,1754463055647,-151.0,0.00035616,7]
[377622547,1754463055659,-400.0,0.00035616,14]
[377622548,1754463055668,-434.35,0.00035616,14]
[377622549,1754463055678,-151.0,0.00035616,7]
[377622550,1754463055691,-648.16,0.00035616,14]
[377622551,1754463055703,-1476.27,0.00035616,14]
[377622552,1754463055714,-159.892084,0.00035616,7]
[377622553,1754463055725,-178.982347,0.00035616,14]
[377622554,1754463055736,-400.0,0.00035616,14]
[377622555,1754463055747,-2955.38,0.00035616,14]
[377622556,1754463055756,-400.0,0.00035616,14]
[377622557,1754463055767,-400.0,0.00035616,14]
[377622558,1754463055780,-400.0,0.00035616,14]
[377622559,1754463055790,-400.0,0.00035616,14]
[377622560,1754463055799,-400.0,0.00035616,14]
[377622561,1754463055809,-400.0,0.00035616,14]
[377622562,1754463055822,-1660.45,0.00035616,14]
[377622563,1754463055831,-585.06,0.00035616,14]
[377622564,1754463055840,-1732.4,0.00035616,14]
[377622565,1754463055853,-2234.05,0.00035616,14]
[377622566,1754463055863,-2239.01,0.00035616,14]
[377622567,1754463055896,-400.0,0.00035616,14]
[377622568,1754463055905,-574.05,0.00035616,14]
[377622569,1754463055914,-400.0,0.00035616,14]
[377622570,1754463055923,-462.51814454,0.00035616,14]
[377622571,1754463055933,-1052.86,0.00035616,14]
[377622572,1754463055942,-1925.92,0.00035616,14]
[377622573,1754463055952,-400.0,0.00035616,14]
[377622574,1754463055961,-400.0,0.00035616,14]
[377622575,1754463055971,-1778.04,0.00035616,14]
[377622576,1754463055980,-1889.5,0.00035616,14]
[377622577,1754463055990,-400.0,0.00035616,14]
[377622578,1754463055999,-1849.77,0.00035616,14]
[377622579,1754463056008,-3077.89,0.00035616,14]
[377622580,1754463056018,-1802.03,0.00035616,14]
[377622581,1754463056027,-416.16,0.00035616,14]
[377622582,1754463056037,-557.73,0.00035616,14]
[377622583,1754463056047,-944.9,0.00035616,14]
[377622584,1754463056056,-1012.28,0.00035616,14]
[377622585,1754463056066,-1329.72,0.00035616,14]
[377622586,1754463056075,-1002.72,0.00035616,14]
[377622587,1754463056084,-400.0,0.00035616,14]
[377622588,1754463056094,-1044.77,0.00035616,14]
[377622589,1754463056103,-1177.36,0.00035616,14]
[377622590,1754463056112,-400.0,0.00035616,14]
[377622591,1754463056122,-400.0,0.00035616,14]
[377622592,1754463056131,-1487.75,0.00035616,14]
[377622593,1754463056141,-1717.9,0.00035616,14]
[377622594,1754463056151,-702.0,0.00035616,14]
[377622595,1754463056161,-747.66,0.00035616,14]
[377622596,1754463056171,-151.0,0.00035616,7]
[377622597,1754463056182,-792.43,0.00035616,14]
[377622598,1754463056192,-400.0,0.00035616,14]
[377622599,1754463056202,-400.0,0.00035616,14]
[377622600,1754463056211,-2258.26,0.00035616,14]
[377622601,1754463056222,-2974.4,0.00035616,14]
[377622602,1754463056232,-2308.13,0.00035616,14]
[377622603,1754463056242,-633.01,0.00035616,14]
[377622604,1754463056251,-501.51,0.00035616,14]
[377622605,1754463056261,-400.0,0.00035616,14]
[377622606,1754463056271,-400.0,0.00035616,14]
[377622607,1754463056280,-900.62,0.00035616,14]
[377622608,1754463056290,-1639.39,0.00035616,14]
[377622609,1754463056299,-574.11,0.00035616,14]
[377622610,1754463056309,-400.0,0.00035616,14]
[377622611,1754463056319,-400.0,0.00035616,14]
[377622612,1754463056329,-151.0,0.00035616,7]
[377622613,1754463056339,-151.0,0.00035616,7]
[377622614,1754463056349,-151.0,0.00035616,7]
[377622615,1754463056358,-400.0,0.00035616,14]
[377622616,1754463056368,-1713.68,0.00035616,14]
[377622617,1754463056379,-207.10411731,0.00035616,14]
[377622618,1754463056389,-513.16,0.00035616,14]
[377622619,1754463056399,-402.15454804,0.00035616,10]
[377622620,1754463056410,-502.6374083,0.00035616,14]
[377622621,1754463056419,-1908.44,0.00035616,14]
[377622622,1754463056429,-3155.56,0.00035616,14]
[377622623,1754463056439,-1598.58,0.00035616,14]
[377622624,1754463056449,-2083.22,0.00035616,14]
[377622625,1754463056459,-1000.41,0.00035616,2]
[377622626,1754463056468,-909.42,0.00035616,14]
[377622627,1754463056478,-1210.65,0.00035616,14]
[377622628,1754463056488,-2042.75,0.00035616,14]
[377622629,1754463056498,-402.25171738,0.00035616,14]
[377622630,1754463056507,-1085.77,0.00035616,14]
[377622631,1754463056517,-534.71798598,0.00035616,14]
[377622632,1754463056527,-400.0,0.00035616,14]
[377622633,1754463056538,-1944.38,0.00035616,14]
[377622634,1754463056547,-640.63,0.00035616,14]
[377622635,1754463056557,-1995.94,0.00035616,14]
[377622636,1754463056567,-1056.88,0.00035616,14]
[377622637,1754463056577,-640.63,0.00035616,14]
[377622638,1754463056587,-2870.24,0.00035616,14]
[377622639,1754463056597,-640.63,0.00035616,14]
[377622640,1754463056607,-640.63,0.00035616,14]
[377622641,1754463056617,-884.72,0.00035616,14]
[377622642,1754463056627,-640.63,0.00035616,14]
[377622643,1754463056636,-640.63,0.00035616,14]
[377622644,1754463056646,-640.63,0.00035616,14]
[377622645,1754463056656,-648.71,0.00035616,14]
[377622646,1754463056666,-500.0,0.00035616,14]
[377622647,1754463056676,-640.63,0.00035616,14]
[377622648,1754463056686,-500.0,0.00035616,14]
[377622649,1754463056695,-640.63,0.00035616,14]
[377622650,1754463056704,-400.0,0.00035616,14]
[377622651,1754463056714,-500.0,0.00035616,14]
[377622652,1754463056723,-400.0,0.00035616,14]
[377622653,1754463056733,-640.63,0.00035616,14]
[377622654,1754463056743,-500.0,0.00035616,14]
[377622655,1754463056752,-500.0,0.00035616,14]
[377622656,1754463056762,-500.0,0.00035616,14]
[377622657,1754463056774,-500.0,0.00035616,14]
[377622658,1754463056783,-400.0,0.00035616,14]
[377622659,1754463056793,-400.0,0.00035616,14]
[377622660,1754463056803,-400.0,0.00035616,14]
[377622661,1754463056813,-500.0,0.00035616,14]
[377622662,1754463056822,-400.0,0.00035616,14]
[377622663,1754463056832,-500.0,0.00035616,14]
[377622664,1754463056842,-400.0,0.00035616,14]
[377622665,1754463056857,-1935.64,0.00035616,14]
[377622666,1754463056867,-877.96,0.00035616,14]
[377622667,1754463056876,-467.03661765,0.00035616,14]
[377622668,1754463056886,-400.0,0.00035616,14]
[377622669,1754463056895,-2637.86,0.00035616,14]
[377622670,1754463056905,-1841.63,0.00035616,14]
[377622671,1754463056915,-379.92207043,0.00035616,14]
[377622672,1754463056925,-1445.2,0.00035616,14]
[377622673,1754463056938,-795.14,0.00035616,14]
[377622674,1754463056949,-1178.54,0.00035616,14]
[377622675,1754463056958,-1454.9,0.00035616,14]
[377622676,1754463056970,-400.0,0.00035616,14]
[377622677,1754463056981,-2414.89,0.00035616,14]
[377622678,1754463056992,-2337.5,0.00035616,14]
[377622679,1754463057004,-916.84,0.00035616,14]
[377622680,1754463057014,-400.0,0.00035616,14]
[377622681,1754463057025,-2000.99,0.00035616,14]
[377622682,1754463057035,-400.0,0.00035616,14]
[377622683,1754463057047,-400.0,0.00035616,14]
[377622684,1754463057057,-400.0,0.00035616,14]
[377622685,1754463057067,-762.45,0.00035616,14]
[377622686,1754463057077,-486.01,0.00035616,14]
[377622687,1754463057088,-3525.86,0.00035616,14]
[377622688,1754463057098,-944.1,0.00035616,14]
[377622689,1754463057108,-587.47,0.00035616,14]
[377622690,1754463057119,-816.03,0.00035616,14]
[377622691,1754463057130,-2321.91,0.00035616,14]
[377622692,1754463057142,-400.0,0.00035616,14]
[377622693,1754463057152,-1674.69,0.00035616,14]
[377622694,1754463057163,-400.0,0.00035616,14]
[377622695,1754463057173,-2012.31,0.00035616,14]
[377622696,1754463057185,-1814.13,0.00035616,14]
[377622697,1754463057195,-400.0,0.00035616,14]
[377622698,1754463057208,-401.58241377,0.00035616,14]
[377622699,1754463057217,-400.0,0.00035616,14]
[377622700,1754463057228,-682.69,0.00035616,14]
[377622701,1754463057238,-414.5,0.00035616,14]
[377622702,1754463057249,-1000.0,0.00035616,60]
[377622703,1754463057258,-1000.0,0.00035616,60]
[377622704,1754463057268,-400.0,0.00035616,14]
[377622705,1754463057278,-540.01,0.00035616,14]
[377622706,1754463057288,-415.23,0.00035616,7]
[377622707,1754463057299,-1267.76,0.00035616,14]
[377622708,1754463057309,-151.0,0.00035616,7]
[377622709,1754463057320,-1945.87,0.00035616,14]
[377622710,1754463057330,-400.0,0.00035616,14]
[377622711,1754463057340,-1716.98,0.00035616,14]
[377622712,1754463057351,-400.0,0.00035616,14]
[377622713,1754463057362,-151.0,0.00035616,7]
[377622714,1754463057372,-151.0,0.00035616,7]
[377622715,1754463057382,-928.12,0.00035616,14]
[377622716,1754463057393,-154.120646,0.00035616,7]
[377622717,1754463057403,-400.0,0.00035616,14]
[377622718,1754463057416,-1071.85,0.00035616,14]
[377622719,1754463057426,-400.0,0.00035616,14]
[377622720,1754463057438,-2457.6,0.00035616,14]
[377622721,1754463057447,-2327.96,0.00035616,14]
[377622722,1754463057458,-1945.35,0.00035616,14]
[377622723,1754463057468,-2339.09,0.00035616,14]
[377622724,1754463057479,-690.31,0.00035616,14]
[377622725,1754463057490,-185.08568638,0.00035616,14]
[377622726,1754463057500,-400.0,0.00035616,14]
[377622727,1754463057511,-2193.87,0.00035616,14]
[377622728,1754463057521,-868.63,0.00035616,14]
[377622729,1754463057531,-3212.42,0.00035616,14]
[377622730,1754463057541,-1113.69,0.00035616,14]
[377622731,1754463057551,-400.0,0.00035616,14]
[377622732,1754463057561,-400.0,0.00035616,14]
[377622733,1754463057571,-2086.93,0.00035616,14]
[377622734,1754463057581,-400.0,0.00035616,14]
[377622735,1754463057591,-400.0,0.00035616,14]
[377622736,1754463057601,-2820.5,0.00035616,14]
[377622737,1754463057611,-3326.58,0.00035616,14]
[377622738,1754463057621,-441.6,0.00035616,14]
[377622739,1754463057631,-781.07,0.00035616,14]
[377622740,1754463057640,-400.0,0.00035616,14]
[377622741,1754463057651,-400.0,0.00035616,14]
[377622742,1754463057662,-421.99,0.00035616,14]
[377622743,1754463057682,-400.0,0.00035616,14]
[377622744,1754463057691,-2785.69,0.00035616,14]
[377622745,1754463057701,-824.16,0.00035616,14]
[377622746,1754463057712,-1795.84,0.00035616,14]
[377622747,1754463057721,-400.0,0.00035616,14]
[377622748,1754463057731,-2529.21,0.00035616,14]
[377622749,1754463057741,-2085.89,0.00035616,14]
[377622750,1754463057751,-400.80016708,0.00035616,14]
[377622751,1754463057760,-400.0,0.00035616,14]
[377622752,1754463057771,-151.0,0.00035616,7]
[377622753,1754463057783,-151.0,0.00035616,7]
[377622754,1754463057793,-2649.5,0.00035616,14]
[377622755,1754463057803,-400.0,0.00035616,14]
[377622756,1754463057812,-400.0,0.00035616,14]
[377622757,1754463057824,-400.0,0.00035616,14]
[377622758,1754463057833,-1795.74,0.00035616,14]
[377622759,1754463057843,-2805.05,0.00035616,14]
[377622760,1754463057854,-2019.24,0.00035616,14]
[377622761,1754463057864,-400.0,0.00035616,14]
[377622762,1754463057873,-2349.46,0.00035616,14]
[377622763,1754463057883,-1832.31,0.00035616,14]
[377622764,1754463057893,-2314.24,0.00035616,14]
[377622765,1754463057902,-1090.67,0.00035616,14]
[377622766,1754463057913,-761.51,0.00035616,14]
[377622767,1754463057923,-462.81135738,0.00035616,14]
[377622768,1754463057932,-400.0,0.00035616,14]
[377622769,1754463057942,-1655.55,0.00035616,14]
[377622770,1754463057953,-1921.38,0.00035616,14]
[377622771,1754463057963,-400.0,0.00035616,14]
[377622772,1754463057973,-1483.4,0.00035616,14]
[377622773,1754463057983,-2990.25,0.00035616,14]
[377622774,1754463057993,-1694.85,0.00035616,14]
[377622775,1754463058003,-2699.76,0.00035616,14]
[377622776,1754463058012,-1455.93,0.00035616,14]
[377622777,1754463058023,-400.0,0.00035616,14]
[377622778,1754463058033,-400.0,0.00035616,14]
[377622779,1754463058043,-1548.52,0.00035616,14]
[377622780,1754463058053,-3639.51,0.00035616,14]
[377622781,1754463058063,-400.0,0.00035616,14]
[377622782,1754463058074,-1407.43,0.00035616,14]
[377622783,1754463058084,-1877.54,0.00035616,14]
[377622784,1754463058095,-1626.81,0.00035616,14]
[377622785,1754463058105,-400.0,0.00035616,14]
[377622786,1754463058114,-693.33,0.00035616,14]
[377622787,1754463058126,-400.0,0.00035616,14]
[377622788,1754463058138,-400.0,0.00035616,14]
[377622789,1754463058393,-400.0,0.00035616,14]
[377622790,1754463058426,-412.82,0.00035616,14]
[377622791,1754463058436,-1403.93,0.00035616,14]
[377622792,1754463058446,-195.17845748,0.00035616,14]
[377622793,1754463058456,-400.0,0.00035616,14]
[377622794,1754463058465,-400.0,0.00035616,14]
[377622795,1754463058475,-400.0,0.00035616,14]
[377622796,1754463058484,-1895.32,0.00035616,14]
[377622797,1754463058495,-4891.3,0.00035616,14]
[377622798,1754463058504,-463.63135648,0.00035616,14]